bitfinex/quotes_ETHUSD_20260219
["timestamp","ask_amount","ask_price","bid_price","bid_amount"]
[1771494064966,0.0011,1975.6,1975.5,1.2655024]
[1771494066869,0.0011,1975.6,1975.5,1.75795107]
[1771494067472,0.0011,1975.6,1975.5,1.2655024]
[1771494071849,0.0011,1975.7,1975.5,1.75795107]
[1771494074088,0.0011,1975.9,1975.5,1.75795107]
[1771494075183,0.0011,1976.5,1975.7,0.49244867]
[1771494075384,0.4766964,1976.4,1975.7,1.64944867]
[1771494075884,0.4777964,1976.3,1975.7,1.64944867]
[1771494076088,0.4777964,1976.3,1975.8,1.26531025]
[1771494076089,0.4777964,1976.2,1975.8,1.26531025]
[1771494076557,0.0011,1976.2,1975.8,1.26531025]
[1771494077789,0.0011,1976.1,1975.8,1.26531025]
[1771494081566,0.0011,1976.1,1975.8,1.75775892]
[1771494081772,0.0011,1976.4,1976.0,6.03429556]
[1771494081981,0.0011,1976.4,1976.0,7.19529556]
[1771494082569,0.0011,1976.4,1976.1,1.26511816]
[1771494084296,0.4777964,1976.4,1976.1,1.26511816]
[1771494084809,0.4777964,1976.4,1976.0,2.42617702]
[1771494085094,0.4777964,1976.4,1976.0,1.161]
[1771494085095,0.4766964,1976.3,1976.0,1.161]
[1771494085285,0.4766964,1976.3,1975.9,1.26520144]
[1771494085286,0.4766964,1976.2,1975.8,1.162]
[1771494086686,0.4766964,1976.2,1975.7,1.2653621]
[1771494086882,0.4766964,1976.2,1975.6,5.06275108]
[1771494088798,0.4766964,1976.1,1975.6,1.26643834]
[1771494089793,0.4766964,1976.1,1975.7,0.001]
[1771494090002,0.4766964,1976.0,1975.7,0.001]
[1771494100807,0.47940144,1975.9,1975.7,0.001]
[1771494102475,0.47940144,1975.9,1975.8,0.001]
[1771494102909,0.47940144,1975.9,1975.6,0.001]
[1771494102910,0.47940144,1975.8,1975.6,0.001]
[1771494104506,0.47940144,1976.0,1975.6,0.001]
[1771494106284,1.32550144,1976.2,1975.6,0.001]
[1771494106688,0.48050144,1976.2,1975.6,0.47524963]
[1771494108006,0.0011,1976.2,1975.7,1.73962392]
[1771494108204,0.0011,1976.2,1975.8,0.47424963]
[1771494110010,0.0011,1976.2,1975.9,1.26524621]
[1771494119020,0.0011,1976.2,1975.8,1.2662604]
[1771494119221,0.48050144,1976.2,1975.8,1.2662604]
[1771494119427,0.48050144,1976.2,1975.8,0.001]
[1771494121104,0.0011,1976.2,1975.8,0.45274602]
[1771494122704,0.0011,1976.2,1975.9,1.26524621]
[1771494125629,0.0011,1976.1,1975.9,1.26524621]
[1771494126130,0.0011,1976.1,1975.8,0.001]
[1771494130132,0.47143912,1976.1,1975.8,0.001]
[1771494133047,0.0011,1976.1,1975.8,0.001]
[1771494141546,0.0011,1976.1,1975.8,0.45726178]
[1771494141747,0.0011,1976.3,1976.0,0.45626178]
[1771494143054,0.0011,1976.3,1976.0,1.17]
[1771494143856,0.0011,1976.3,1976.1,1.26511816]
[1771494147833,0.0011,1976.3,1975.9,1.26520603]
[1771494147834,0.47143912,1976.3,1975.9,1.26520603]
[1771494148867,0.47143912,1976.3,1975.9,0.001]
[1771494149179,0.47143912,1976.2,1975.9,0.001]
[1771494150966,0.0011,1976.2,1975.9,0.001]
[1771494160470,0.4939839,1976.2,1976.0,0.001]
[1771494160652,0.0011,1976.1,1976.0,0.001]
[1771494163948,0.4939839,1976.1,1976.0,0.001]
[1771494165484,0.0011,1976.1,1976.0,0.001]
[1771494179791,0.0011,1976.1,1976.0,1.26618218]
[1771494183709,0.0011,1976.1,1975.9,0.001]
[1771494183879,0.0011,1976.1,1975.9,1.26624174]
[1771494184309,0.0011,1976.1,1975.9,0.001]
[1771494185103,0.0011,1976.2,1976.1,0.001]
[1771494192517,0.0011,1976.4,1976.1,1.72551273]
[1771494192724,0.48256671,1976.9,1976.2,0.45939457]
[1771494192912,0.48256671,1976.9,1976.2,5.99901187]
[1771494193732,0.48256671,1976.9,1976.3,0.45939457]
[1771494194819,0.48256671,1976.9,1976.2,5.5396173]
[1771494194820,0.48256671,1976.8,1976.2,5.06004708]
[1771494196907,0.48256671,1976.8,1976.2,5.06104708]
[1771494197094,0.0011,1976.3,1976.2,1.26605414]
[1771494197300,0.0011,1976.4,1976.2,1.26605414]
[1771494198238,0.0011,1976.6,1976.2,6.80567144]
[1771494198524,0.0011,1976.6,1976.2,1.72544871]
[1771494205040,0.0011,1976.6,1976.3,0.45939457]
[1771494205195,0.0011,1976.6,1976.2,1.26605414]
[1771494209214,0.0011,1976.6,1976.3,0.001]
[1771494209410,0.0011,1976.5,1976.3,0.001]
[1771494212724,0.48366671,1976.5,1976.3,0.001]
[1771494218437,0.0011,1976.5,1976.3,0.001]
[1771494221538,0.0011,1976.5,1976.4,0.001]
[1771494222521,0.45203871,1976.5,1976.4,0.001]
[1771494223258,0.45203871,1976.5,1976.2,0.001]
[1771494227632,0.0011,1976.5,1976.2,0.001]
[1771494228252,0.45203871,1976.5,1976.2,0.001]
[1771494229766,1.26492612,1976.4,1976.0,0.001]
[1771494229944,0.45093871,1976.3,1976.0,0.001]
[1771494231562,0.45093871,1976.4,1976.0,0.001]
[1771494234359,0.45093871,1976.4,1976.1,0.001]
[1771494234550,0.45203871,1976.4,1976.1,0.001]
[1771494242299,0.0011,1976.4,1976.1,0.001]
[1771494243066,0.0011,1976.4,1976.1,0.49823049]
[1771494243578,0.0011,1976.7,1976.3,0.49723049]
[1771494243781,0.0011,1976.8,1976.3,0.49723049]
[1771494244370,0.0011,1976.8,1976.4,1.26492612]
[1771494244692,0.0033,1976.7,1976.4,1.26492612]
[1771494246089,0.0011,1976.6,1976.3,5.05970451]
[1771494247375,0.0011,1976.6,1976.2,5.06007886]
[1771494247570,0.0044,1976.6,1976.2,1.26505414]
[1771494247997,0.0033,1976.5,1976.2,1.26505414]
[1771494248298,0.46845174,1976.5,1976.1,0.001]
[1771494248498,0.0033,1976.4,1976.1,0.001]
[1771494255696,0.0033,1976.4,1976.2,0.45262535]
[1771494255896,0.0011,1976.6,1976.2,0.45262535]
[1771494256194,0.0033,1976.5,1976.2,0.45262535]
[1771494256899,0.0033,1976.5,1976.1,0.001]
[1771494257402,0.0011,1976.6,1976.1,0.001]
[1771494257601,0.0033,1976.5,1976.1,0.001]
[1771494257774,0.0011,1976.6,1976.1,0.001]
[1771494258176,0.0011,1976.6,1976.3,0.001]
[1771494259274,0.46625174,1976.6,1976.3,0.001]
[1771494260378,0.0033,1976.5,1976.3,0.001]
[1771494262907,0.0033,1976.4,1976.3,0.001]
[1771494263104,0.0033,1976.5,1976.3,0.001]
[1771494263586,0.0033,1976.4,1976.3,0.001]
[1771494263789,0.0033,1976.5,1976.3,0.001]
[1771494264186,0.0033,1976.4,1976.3,0.001]
[1771494264384,0.0033,1976.5,1976.3,0.001]
[1771494264784,0.0033,1976.4,1976.3,0.001]
[1771494265091,0.0033,1976.5,1976.3,0.001]
[1771494265478,0.0033,1976.4,1976.3,0.001]
[1771494265685,0.0033,1976.5,1976.3,0.001]
[1771494266521,0.0033,1976.4,1976.3,0.001]
[1771494266721,0.0033,1976.5,1976.3,0.001]
[1771494267111,0.46625174,1976.6,1976.3,0.001]
[1771494267112,0.0033,1976.4,1976.3,0.001]
[1771494267315,0.0033,1976.5,1976.3,0.001]
[1771494267823,0.0033,1976.4,1976.3,0.001]
[1771494268012,0.0033,1976.5,1976.3,0.001]
[1771494268386,0.0033,1976.4,1976.3,0.001]
[1771494268587,0.0033,1976.5,1976.3,0.001]
[1771494269013,0.0033,1976.4,1976.3,0.001]
[1771494269315,0.0033,1976.5,1976.3,0.45362535]
[1771494269488,0.0033,1976.5,1976.3,0.001]
[1771494269900,0.0033,1976.5,1976.4,0.001]
[1771494271319,0.46845174,1976.5,1976.1,1.26611816]
[1771494271998,0.0033,1976.4,1976.1,1.26611816]
[1771494274500,0.0033,1976.4,1976.1,0.001]
[1771494275097,0.46845174,1976.4,1976.1,0.001]
[1771494276616,0.46515174,1976.4,1976.1,0.001]
[1771494281214,0.0033,1976.3,1976.2,0.001]
[1771494281524,0.0044,1976.3,1976.2,0.001]
[1771494286730,0.45877342,1976.3,1976.2,0.001]
[1771494291510,0.0044,1976.3,1976.2,0.001]
[1771494300752,0.0011,1976.6,1976.2,0.001]
[1771494300952,0.0011,1976.6,1976.2,6.8048493]
[1771494301425,0.0011,1976.6,1976.2,1.26605414]
[1771494301942,0.49689769,1976.6,1976.2,0.001]
[1771494303428,0.49579769,1976.5,1976.2,0.001]
[1771494304628,0.49579769,1976.5,1976.3,0.001]
[1771494304835,0.49579769,1976.5,1976.3,0.00015666]
[1771494305051,0.49689769,1976.5,1976.3,0.00015666]
[1771494305744,0.49689769,1976.5,1976.2,0.001]
[1771494313468,0.49689769,1976.5,1976.2,0.00015673]
[1771494316961,0.49689769,1976.5,1976.3,0.001]
[1771494317150,0.49689769,1976.5,1976.3,9.439e-05]
[1771494317349,0.0011,1976.4,1976.3,9.439e-05]
[1771494319370,0.0011,1976.4,1976.1,0.001]
[1771494321476,0.4923484,1976.4,1976.1,0.001]
[1771494323083,0.4912484,1976.2,1975.9,0.001]
[1771494324946,1.75630575,1976.2,1975.9,0.001]
[1771494325370,0.4912484,1976.1,1975.9,0.001]
[1771494325570,0.4912484,1976.1,1975.7,0.001]
[1771494326166,0.4912484,1976.0,1975.7,0.001]
[1771494326382,0.821,1976.1,1975.7,0.001]
[1771494326555,1.3122484,1976.1,1975.7,0.001]
[1771494327048,2.5773762,1976.1,1975.7,0.001]
[1771494328874,2.5773762,1976.1,1975.8,0.001]
[1771494329073,1.75647255,1976.0,1975.8,0.001]
[1771494329896,0.4912484,1975.9,1975.6,0.001]
[1771494331858,1.75650191,1975.9,1975.6,0.001]
[1771494332571,0.4912484,1975.8,1975.6,0.001]
[1771494334094,0.4923484,1976.3,1975.7,0.48634759]
[1771494334463,0.0011,1976.3,1975.7,0.48634759]
[1771494334669,0.0011,1976.3,1975.9,0.48634759]
[1771494335691,0.0011,1976.3,1976.0,1.75152977]
[1771494336580,0.0011,1976.3,1975.8,0.4915339]
[1771494337602,0.0011,1976.3,1975.9,1.26524621]
[1771494337809,0.0011,1976.3,1975.9,1.75678011]
[1771494339220,0.0011,1976.3,1976.0,0.4915339]
[1771494340206,0.0011,1976.3,1976.1,1.26511816]
[1771494340779,0.0011,1976.2,1976.1,1.26511816]
[1771494342004,0.0011,1976.2,1976.0,5.55206993]
[1771494342005,0.0011,1976.2,1976.0,1.75667216]
[1771494345532,0.0011,1976.2,1976.0,1.26513826]
[1771494349352,0.0011,1976.2,1975.9,5.06087911]
[1771494351248,0.0011,1976.2,1975.8,0.4925339]
[1771494351445,0.0011,1976.2,1975.8,1.75779664]
[1771494354261,0.0011,1976.2,1975.9,0.4915339]
[1771494356657,0.0011,1976.2,1975.9,5.06086225]
[1771494358971,0.47368701,1976.2,1975.8,0.001]
[1771494361171,0.48986298,1976.1,1975.8,0.001]
[1771494363275,0.48986298,1975.9,1975.8,0.001]
[1771494363776,0.48986298,1975.9,1975.5,0.001]
[1771494364146,0.48986298,1975.9,1975.8,0.001]
[1771494364456,0.48986298,1975.9,1975.2,5.06265414]
[1771494364457,0.48986298,1975.9,1975.2,1.26565687]
[1771494364657,0.48986298,1975.7,1975.1,1.26571794]
[1771494365051,0.48986298,1975.6,1975.1,1.26571794]
[1771494365885,0.48986298,1975.6,1975.0,2.46977614]
[1771494366180,0.48986298,1975.6,1975.0,1.204]
[1771494366181,0.48986298,1975.5,1975.0,1.204]
[1771494366380,0.48986298,1975.5,1974.8,1.26591672]
[1771494366781,0.48986298,1975.5,1974.7,1.26596451]
[1771494366983,0.47301664,1975.3,1974.6,3.38103221]
[1771494367166,0.47301664,1975.2,1974.6,3.38103221]
[1771494368368,0.47301664,1975.4,1974.7,0.4670446]
[1771494368569,0.47301664,1975.7,1975.1,6.00625162]
[1771494368970,0.47301664,1975.7,1975.1,0.4670446]
[1771494369293,0.47301664,1975.8,1975.1,0.4670446]
[1771494369472,0.47301664,1975.7,1975.1,6.00625162]
[1771494369858,0.47301664,1975.7,1975.1,0.4670446]
[1771494371387,1.26523384,1976.0,1975.2,1.73273921]
[1771494371576,0.0011,1976.1,1975.3,0.4670446]
[1771494371775,0.47301664,1976.0,1975.4,0.4670446]
[1771494371982,0.47301664,1976.0,1975.3,5.53920702]
[1771494372782,0.47301664,1976.0,1975.2,1.73273921]
[1771494373981,0.47301664,1975.9,1975.2,1.73273921]
[1771494374181,0.47301664,1975.9,1975.3,0.4670446]
[1771494374906,2.08625953,1976.1,1975.3,0.4670446]
[1771494374907,0.47301664,1976.0,1975.3,0.4670446]
[1771494376109,0.47301664,1975.9,1975.2,1.26569461]
[1771494376621,0.47301664,1975.7,1975.2,0.001]
[1771494377305,0.47301664,1975.5,1975.2,0.001]
[1771494377706,0.47301664,1975.5,1975.0,0.001]
[1771494377912,0.47301664,1975.3,1975.0,0.001]
[1771494378704,0.47301664,1975.1,1975.0,0.001]
[1771494380121,0.47301664,1975.1,1974.5,5.06456436]
[1771494381618,0.47301664,1975.1,1974.5,5.53160896]
[1771494384317,0.47301664,1974.9,1974.4,0.94482184]
[1771494385723,0.47301664,1974.7,1974.4,0.94482184]
[1771494386124,0.47301664,1974.7,1974.4,0.64632543]
[1771494386451,0.47301664,1974.5,1974.1,0.00702068]
[1771494386594,0.47301664,1974.1,1973.1,0.4670446]
[1771494386801,6.01584829,1974.0,1973.2,1.73397303]
[1771494387310,0.47301664,1973.9,1973.2,1.26692843]
[1771494387508,6.01584829,1973.8,1973.1,1.26699627]
[1771494387812,0.47301664,1973.8,1973.1,1.73404087]
[1771494388223,0.47301664,1973.7,1973.1,1.26699627]
[1771494389101,1.73958272,1973.9,1973.1,1.73404087]
[1771494389302,0.47301664,1973.8,1973.2,0.001]
[1771494389814,1.73965044,1973.8,1973.2,0.001]
[1771494391835,0.47301664,1973.7,1973.2,0.001]
[1771494393814,0.47301664,1973.9,1973.2,0.001]
[1771494394049,0.47301664,1973.9,1973.2,0.4680446]
[1771494396655,1.26659235,1973.8,1973.2,0.001]
[1771494396858,0.48873043,1973.5,1973.0,0.001]
[1771494397153,0.48873043,1973.7,1973.0,0.4789248]
[1771494397351,0.82,1973.6,1973.0,0.4789248]
[1771494397536,0.48873043,1973.7,1973.0,0.4789248]
[1771494397744,0.82,1973.6,1973.0,0.4789248]
[1771494397956,1.30873043,1973.7,1973.0,0.4789248]
[1771494398759,1.26672071,1973.6,1973.0,1.74598378]
[1771494399060,2.57543341,1973.7,1973.0,1.74598378]
[1771494399250,0.82,1973.7,1973.1,0.4779248]
[1771494399647,1.30873043,1973.7,1973.1,0.4779248]
[1771494399974,0.48873043,1973.6,1973.0,1.26805898]
[1771494400840,0.82,1973.7,1973.0,0.4789248]
[1771494401446,0.48873043,1973.6,1973.0,0.001]
[1771494402961,0.48873043,1973.4,1973.2,0.001]
[1771494403168,0.48873043,1973.4,1973.0,0.001]
[1771494404842,1.26691329,1973.3,1973.0,0.001]
[1771494405043,1.2668854,1973.4,1973.0,0.001]
[1771494405258,0.821,1973.3,1973.0,0.001]
[1771494406765,1.30973043,1973.3,1973.0,0.001]
[1771494407271,1.26697749,1973.2,1973.0,0.001]
[1771494407870,2.57668677,1973.3,1973.0,0.001]
[1771494408368,2.57768677,1973.3,1973.0,0.001]
[1771494408591,1.2667666,1973.6,1973.0,0.001]
[1771494408739,0.822,1973.4,1973.0,0.001]
[1771494409247,0.822,1973.4,1973.0,1.26810593]
[1771494409449,1.26679542,1973.5,1973.0,1.26810593]
[1771494409658,2.08979542,1973.5,1973.0,0.001]
[1771494409864,6.04745386,1973.2,1972.4,0.4779248]
[1771494410175,5.55872343,1973.0,1972.3,1.26755564]
[1771494410378,0.823,1972.9,1972.2,1.89393092]
[1771494410764,0.823,1972.9,1972.2,1.84393092]
[1771494410965,1.31173043,1972.9,1972.2,1.84393092]
[1771494411299,6.82595781,1972.8,1972.2,1.36605016]
[1771494411471,6.82595781,1972.8,1972.2,0.0984382]
[1771494411669,0.823,1972.7,1972.2,0.0984382]
[1771494412361,0.823,1972.7,1972.2,1.36604286]
[1771494412562,0.823,1972.6,1972.2,1.84396766]
[1771494412799,1.26714983,1973.0,1972.3,0.4779248]
[1771494413094,0.823,1973.0,1972.3,0.4779248]
[1771494413661,0.823,1973.1,1972.5,0.4779248]
[1771494414492,1.26700416,1973.2,1972.5,0.4779248]
[1771494414670,2.09000416,1973.2,1972.5,0.4779248]
[1771494414876,0.823,1973.2,1972.5,0.4779248]
[1771494415072,1.2669776,1973.2,1972.5,0.4779248]
[1771494415386,0.823,1973.2,1972.5,0.4779248]
[1771494416183,1.26684909,1973.4,1972.5,0.4779248]
[1771494416371,2.153164,1973.3,1972.6,1.74528767]
[1771494416897,2.08884909,1973.4,1972.7,0.4779248]
[1771494417303,0.0011,1973.0,1972.7,0.4779248]
[1771494417683,0.0011,1973.0,1972.5,1.26738776]
[1771494417684,0.0011,1973.0,1972.5,1.74531256]
[1771494419019,0.0011,1973.0,1972.6,0.4779248]
[1771494420617,0.0011,1973.0,1972.8,0.4779248]
[1771494421810,0.0011,1973.0,1972.6,0.48339253]
[1771494422013,0.0011,1973.0,1972.6,1.26734727]
[1771494422305,0.0011,1973.0,1972.5,0.48339253]
[1771494422510,0.0011,1973.0,1972.4,2.45744265]
[1771494422892,0.0011,1973.0,1972.4,2.94083518]
[1771494423506,0.0011,1973.0,1972.4,1.26744265]
[1771494424527,0.47099765,1973.0,1972.3,0.001]
[1771494424706,1.26717015,1972.9,1972.3,1.26854035]
[1771494425787,1.26717015,1972.9,1972.3,0.001]
[1771494426401,2.55815215,1973.0,1972.3,0.001]
[1771494426909,1.73815215,1973.0,1972.3,0.001]
[1771494427212,2.55815215,1973.0,1972.3,0.001]
[1771494429725,1.72301019,1972.9,1972.3,0.001]
[1771494430018,2.08824027,1973.0,1972.3,0.49899082]
[1771494430199,4.033233,1972.9,1972.3,0.49899082]
[1771494430506,1.26824027,1973.0,1972.3,0.49899082]
[1771494430718,0.82,1972.9,1972.3,0.49899082]
[1771494431684,2.08831456,1972.9,1972.3,1.76650253]
[1771494432235,0.8211,1972.9,1972.3,1.76650253]
[1771494432517,0.0011,1972.9,1972.4,0.49799082]
[1771494433614,0.0011,1972.9,1972.5,1.26742712]
[1771494433821,0.0011,1972.9,1972.5,1.76541794]
[1771494438496,0.0011,1972.9,1972.6,0.49799082]
[1771494439919,1.72252812,1973.6,1972.7,0.49799082]
[1771494440121,0.0022,1973.5,1972.7,0.49799082]
[1771494440712,0.0022,1973.5,1972.9,0.49799082]
[1771494443624,0.0022,1973.5,1973.0,1.26710593]
[1771494444697,0.0022,1973.5,1973.0,1.76509675]
[1771494445426,1.72250566,1973.7,1973.0,1.76509675]
[1771494445597,0.0022,1973.6,1973.0,1.76509675]
[1771494446194,0.0011,1973.4,1973.0,1.76509675]
[1771494446824,0.45580165,1973.3,1972.8,0.001]
[1771494447024,0.45800165,1973.3,1972.8,0.001]
[1771494447196,0.45580165,1973.1,1972.3,0.49899082]
[1771494447396,0.45580165,1973.1,1972.5,0.001]
[1771494447641,0.45580165,1972.9,1972.5,0.001]
[1771494448320,0.0012,1972.8,1972.5,0.001]
[1771494449811,1.26843438,1972.8,1972.5,0.001]
[1771494451154,0.45580165,1972.6,1971.6,5.07190108]
[1771494451313,0.45580165,1972.4,1971.3,0.49799082]
[1771494451502,0.913,1972.5,1971.3,1.57599082]
[1771494451503,0.0012,1972.5,1971.3,1.57599082]
[1771494451703,0.0012,1972.5,1971.4,0.49799082]
[1771494451929,1.67738578,1972.6,1971.6,0.49799082]
[1771494452113,0.0012,1972.5,1971.6,0.49799082]
[1771494453922,0.0012,1972.5,1971.7,1.26794137]
[1771494454123,0.8192,1972.5,1971.7,1.26794137]
[1771494454631,0.45580165,1972.4,1971.6,1.76598439]
[1771494455000,0.0012,1972.3,1971.6,1.76598439]
[1771494456035,1.26875564,1972.3,1971.6,1.76598439]
[1771494456738,0.0012,1972.2,1971.4,1.74160299]
[1771494457313,0.48257921,1972.2,1971.4,0.47346867]
[1771494457944,1.26768419,1972.1,1971.3,2.34618547]
[1771494458119,1.7490634,1972.1,1971.3,2.34618837]
[1771494458317,1.29957921,1972.0,1971.0,0.47346867]
[1771494458539,0.0012,1972.0,1971.0,0.47346867]
[1771494458742,0.817,1971.9,1971.0,0.47346867]
[1771494459642,0.0012,1971.8,1971.0,0.47346867]
[1771494460238,1.26907706,1971.8,1971.1,1.74179599]
[1771494460413,0.0012,1971.8,1971.1,1.74179599]
[1771494460618,0.0012,1971.8,1971.2,0.47346867]
[1771494462650,0.0012,1971.8,1971.3,1.26819865]
[1771494463020,0.0012,1971.8,1971.1,1.74278635]
[1771494463353,0.0012,1971.8,1971.2,0.47346867]
[1771494464849,0.0012,1971.8,1971.3,1.26819865]
[1771494465051,0.0012,1971.8,1971.1,1.26930273]
[1771494465235,0.0012,1971.8,1971.1,1.7427714]
[1771494465436,0.0012,1971.8,1971.2,0.47346867]
[1771494466837,0.0012,1971.8,1971.3,1.74166732]
[1771494467240,0.0012,1971.8,1971.3,1.26819865]
[1771494467442,1.7490634,1972.1,1971.3,0.47346867]
[1771494467649,0.0012,1972.0,1971.3,0.47346867]
[1771494468462,0.48257921,1972.0,1971.2,1.74167903]
[1771494468865,0.48257921,1972.0,1971.3,0.47346867]
[1771494469065,0.48137921,1972.0,1971.3,0.47346867]
[1771494469442,0.0012,1971.9,1971.3,0.47346867]
[1771494471358,0.0012,1971.9,1971.4,1.26813432]
[1771494471526,0.0012,1971.9,1971.4,1.74160299]
[1771494471935,0.0012,1971.9,1971.4,1.26813432]
[1771494473858,0.0012,1971.9,1971.3,5.07264799]
[1771494474040,0.48257921,1971.9,1971.1,1.26932551]
[1771494474236,0.48257921,1971.9,1971.1,0.001]
[1771494474463,0.48137921,1971.8,1971.1,0.001]
[1771494474651,0.48137921,1971.5,1970.4,1.26872376]
[1771494474852,0.89137921,1971.4,1970.5,0.47346867]
[1771494475031,0.89137921,1971.4,1971.3,0.001]
[1771494475236,0.48137921,1971.3,1970.4,1.26872376]
[1771494475937,0.48137921,1971.1,1970.3,2.92227482]
[1771494476263,0.48137921,1971.1,1970.3,1.26880615]
[1771494476932,0.48137921,1971.1,1970.1,0.00703476]
[1771494477254,0.48137921,1971.0,1970.1,0.00703476]
[1771494477436,0.48137921,1970.4,1969.5,2.21912404]
[1771494477632,0.815,1970.4,1969.6,0.47346867]
[1771494477831,1.2688423,1970.3,1969.6,1.74271272]
[1771494478155,0.48137921,1970.2,1969.5,0.94979401]
[1771494478332,4.286397,1970.1,1969.1,0.47346867]
[1771494478534,0.48137921,1969.9,1968.8,5.55267754]
[1771494478767,0.48137921,1969.9,1968.9,0.47346867]
[1771494479062,0.41,1970.1,1968.9,0.47346867]
[1771494479971,1.75041474,1970.0,1969.0,1.74314871]
[1771494480167,0.48137921,1969.9,1969.0,1.74314871]
[1771494480472,1.95923774,1970.0,1969.1,0.47346867]
[1771494481345,1.26902123,1970.1,1969.1,0.47346867]
[1771494481546,2.08494266,1970.2,1969.1,0.47346867]
[1771494482145,2.08494266,1970.2,1969.3,0.49528153]
[1771494482670,0.37279811,1970.1,1969.1,1.76484632]
[1771494482870,0.37279811,1970.1,1969.1,0.49528153]
[1771494483066,0.37279811,1969.9,1968.9,1.76499882]
[1771494483383,0.817,1969.8,1968.9,1.76499882]
[1771494483881,2.91014011,1969.7,1968.7,2.6111184]
[1771494484090,1.64209136,1969.6,1968.6,1.2698895]
[1771494484243,0.37279811,1969.5,1968.6,1.2698895]
[1771494484445,0.37279811,1969.5,1968.5,2.18396446]
[1771494484669,0.37279811,1969.5,1968.5,1.26996446]
[1771494484987,0.816,1969.4,1968.6,0.49528153]
[1771494485576,0.37279811,1969.5,1968.6,0.49528153]
[1771494485748,0.816,1969.4,1968.6,0.49528153]
[1771494486175,2.18325522,1969.7,1968.8,0.49528153]
[1771494486371,2.865144,1969.7,1968.8,0.49528153]
[1771494486575,0.816,1969.7,1968.8,0.49528153]
[1771494487895,9.393213,1969.8,1968.8,0.49528153]
[1771494488055,0.816,1969.7,1968.8,0.49528153]
[1771494488490,1.26929325,1969.6,1968.9,1.26974452]
[1771494488673,2.08527955,1969.7,1968.9,1.26974452]
[1771494488874,2.08527955,1969.7,1968.9,1.73511617]
[1771494489180,1.26919251,1969.8,1968.9,1.73511617]
[1771494489482,0.816,1969.7,1968.9,1.73511617]
[1771494490680,1.26929325,1969.6,1968.9,1.73511617]
[1771494490883,1.64209136,1969.6,1968.7,1.27083518]
[1771494491073,0.37279811,1969.5,1968.7,0.001]
[1771494491386,0.37279811,1969.5,1968.7,1.27086686]
[1771494491878,0.37279811,1969.5,1968.7,0.001]
[1771494492269,1.26929325,1969.6,1968.7,1.73624248]
[1771494492580,1.73,1969.5,1968.7,1.73624248]
[1771494492963,1.64222026,1969.4,1968.7,0.001]
[1771494493167,0.37279811,1969.3,1968.7,0.001]
[1771494494518,0.37279811,1969.3,1968.2,1.3304382]
[1771494494519,0.37279811,1969.3,1968.3,0.46537165]
[1771494494804,0.37279811,1969.3,1967.9,0.46537165]
[1771494494805,6.67148515,1968.8,1967.9,0.46537165]
[1771494494961,6.67148515,1968.8,1968.0,1.2703252]
[1771494494962,1.26987352,1968.7,1968.0,1.2703252]
[1771494495157,1.26987352,1968.7,1968.0,1.73569685]
[1771494495158,2.99987352,1968.7,1968.0,1.73569685]
[1771494495358,19.781418,1968.5,1967.7,0.46537165]
[1771494495583,6.67148515,1968.5,1967.7,0.46537165]
[1771494495782,2.62231011,1968.4,1967.4,1.73608426]
[1771494495971,7.63923861,1968.4,1967.4,1.73608426]
[1771494496178,7.63923861,1968.4,1967.4,0.46537165]
[1771494496383,20.83680111,1968.3,1967.4,0.46537165]
[1771494496557,0.37279811,1968.5,1967.4,0.46537165]
[1771494496764,1.452,1968.4,1967.4,0.46537165]
[1771494496985,1.26987352,1968.7,1967.5,1.27064803]
[1771494497265,0.817,1968.6,1967.6,0.46537165]
[1771494497587,1.26987352,1968.7,1967.6,0.46537165]
[1771494497774,0.818,1968.6,1967.6,0.46537165]
[1771494498203,0.818,1968.5,1967.6,0.46537165]
[1771494498937,8.45723861,1968.5,1967.4,1.27070214]
[1771494499083,1.64292969,1968.3,1967.3,0.46537165]
[1771494499430,1.64292969,1968.3,1966.9,1.73638122]
[1771494499431,30.0,1968.0,1966.9,1.73638122]
[1771494499722,28.471808,1967.8,1966.9,1.73637816]
[1771494499875,30.0,1968.0,1966.9,1.73637816]
[1771494500079,28.923916,1967.8,1966.9,1.27100651]
[1771494500281,28.923916,1967.8,1966.7,1.27298104]
[1771494500497,2.10679811,1967.9,1966.8,0.46537165]
[1771494500498,0.82,1967.7,1966.8,0.46537165]
[1771494501098,1.27058345,1967.6,1966.8,0.46537165]
[1771494501274,1.27058345,1967.6,1967.5,0.001]
[1771494501478,2.09158345,1967.6,1966.8,1.73643473]
[1771494501715,2.09158345,1967.6,1967.4,0.001]
[1771494501894,0.821,1967.7,1966.9,0.46537165]
[1771494502195,5.08166503,1967.9,1966.9,0.46537165]
[1771494502391,0.821,1967.8,1966.9,0.46537165]
[1771494502608,5.08166503,1967.9,1966.9,0.46537165]
[1771494502789,1.2703252,1968.0,1966.9,0.46537165]
[1771494503108,1.2703252,1968.0,1967.1,0.46537165]
[1771494503312,0.821,1967.9,1967.1,0.46537165]
[1771494503915,1.2703252,1968.0,1967.1,0.46537165]
[1771494504215,0.822,1967.9,1967.1,0.46537165]
[1771494504816,0.41,1968.2,1967.1,0.46537165]
[1771494505527,15.522162,1968.0,1966.9,0.46537165]
[1771494505819,30.0,1967.9,1966.9,0.46537165]
[1771494505993,20.650191,1967.9,1966.9,0.46537165]
[1771494506319,0.826,1967.8,1966.9,0.46537165]
[1771494507424,1.27051887,1967.7,1967.0,1.27097102]
[1771494507924,5.08110126,1968.1,1967.0,0.46537165]
[1771494508217,10.311901,1968.0,1967.0,0.46537165]
[1771494508522,10.311901,1968.0,1966.7,1.73836606]
[1771494508523,10.68469911,1968.0,1966.7,1.73836606]
[1771494508692,30.37279811,1967.9,1966.7,1.73836606]
[1771494508897,30.0,1967.8,1966.7,1.73836606]
[1771494509223,23.2374582,1967.2,1966.0,0.46537165]
[1771494509447,23.2374582,1967.2,1965.6,5.09572872]
[1771494509448,0.33816976,1966.6,1965.6,0.009]
[1771494509726,4.991088,1966.4,1965.6,0.009]
[1771494510196,13.56818,1966.2,1965.6,0.009]
[1771494510396,13.56818,1966.2,1965.2,1.27209948]
[1771494510591,13.56818,1966.2,1965.2,1.73747113]
[1771494510592,12.489392,1966.2,1965.2,1.73747113]